bitfinex-derivatives/quotes_BTCF0:USTF0_20241122
["timestamp","ask_amount","ask_price","bid_price","bid_amount"]
[1732254956173,0.37831162,98815.0,98814.0,0.00151789]
[1732254956369,0.050553,98801.0,98800.0,0.1]
[1732254956771,0.050593,98801.0,98800.0,0.1]
[1732254956973,0.4142066,98801.0,98800.0,0.1]
[1732254957176,0.0534066,98801.0,98800.0,0.1]
[1732254957672,0.4142066,98801.0,98800.0,0.1]
[1732254957877,0.0534066,98801.0,98800.0,0.1]
[1732254958275,0.4142066,98801.0,98800.0,0.1]
[1732254960777,0.43551445,98801.0,98800.0,0.1]
[1732254973877,0.43551445,98801.0,98800.0,0.150554]
[1732254977487,0.3636536,98801.0,98800.0,0.150554]
[1732254977687,0.0028536,98801.0,98800.0,0.150554]
[1732254980287,0.0208548,98804.0,98803.0,0.050552]
[1732254980489,0.0101,98810.0,98809.0,0.050549]
[1732254980691,0.0101,98816.0,98815.0,0.050546]
[1732254980903,0.050543,98822.0,98815.0,0.3608]
[1732254981104,0.050543,98820.0,98819.0,0.050543]
[1732254988790,0.050545,98817.0,98815.0,0.411946]
[1732254988989,0.050545,98817.0,98815.0,0.3608]
[1732254989198,0.050545,98817.0,98816.0,0.050545]
[1732254991994,0.3608,98820.0,98814.0,0.050546]
[1732254992195,0.3917,98820.0,98814.0,0.050546]
[1732254992395,0.442243,98820.0,98819.0,4e-05]
[1732254997099,0.6953,98820.0,98803.0,0.3608]
[1732254997404,0.050592,98804.0,98803.0,0.3608]
[1732254997600,0.050552,98803.0,98802.0,0.050552]
[1732254997995,0.050592,98803.0,98802.0,0.050552]
[1732255001006,0.050553,98801.0,98800.0,0.1]
[1732255001397,0.050593,98801.0,98800.0,0.1]
[1732255003805,0.050553,98801.0,98800.0,0.1]
[1732255005912,0.05194137,98801.0,98800.0,0.1]
[1732255015714,0.05194137,98801.0,98800.0,0.150554]
[1732255027222,0.05194137,98801.0,98800.0,0.1]
[1732255031730,0.05194137,98801.0,98800.0,0.04045316]
[1732255033023,0.35558137,98801.0,98786.0,0.0101]
[1732255033224,0.050562,98783.0,98782.0,0.36132]
[1732255033427,0.050562,98783.0,98782.0,0.3608]
[1732255033732,4e-05,98787.0,98780.0,0.15723828]
[1732255033935,0.050563,98781.0,98780.0,0.15723828]
[1732255034122,0.050603,98781.0,98780.0,0.15723828]
[1732255035026,0.05199137,98781.0,98780.0,0.15723828]
[1732255036526,0.07302259,98781.0,98780.0,0.15723828]
[1732255036932,0.02245959,98781.0,98780.0,0.15723828]
[1732255038726,0.07302259,98781.0,98780.0,0.15723828]
[1732255042833,0.02245959,98781.0,98780.0,0.15723828]
[1732255043250,0.07302259,98781.0,98780.0,0.15723828]
[1732255050855,0.02245959,98781.0,98780.0,0.15723828]
[1732255051054,0.00142837,98781.0,98780.0,0.15723828]
[1732255051255,0.05199137,98781.0,98780.0,0.15723828]
[1732255054355,0.00142837,98781.0,98780.0,0.15723828]
[1732255054757,0.00142837,98781.0,98780.0,0.46095828]
[1732255055057,0.3608,98788.0,98787.0,0.05056]
[1732255056058,0.052954,98799.0,98798.0,0.050555]
[1732255056260,0.050554,98799.0,98798.0,0.050555]
[1732255056450,0.050554,98799.0,98798.0,0.050595]
[1732255056949,0.050554,98803.0,98802.0,0.050552]
[1732255057345,0.050554,98803.0,98802.0,0.050592]
[1732255062561,0.3814486,98804.0,98803.0,0.050552]
[1732255062752,0.0206486,98804.0,98803.0,0.050552]
[1732255062955,0.050547,98814.0,98803.0,0.050592]
[1732255063255,0.050547,98814.0,98811.0,0.050548]
[1732255063456,0.3608,98816.0,98811.0,0.050548]
[1732255063861,0.10560001,98812.0,98811.0,0.050588]
[1732255065361,0.07126698,98812.0,98811.0,0.050588]
[1732255066859,0.07126698,98812.0,98811.0,4e-05]
[1732255078665,0.02071898,98812.0,98811.0,0.050588]
[1732255078968,0.412066,98816.0,98815.0,0.050546]
[1732255079162,0.411346,98816.0,98815.0,0.050546]
[1732255079370,0.411346,98816.0,98815.0,0.050586]
[1732255080258,0.43197124,98816.0,98815.0,0.050586]
[1732255081971,0.07117124,98816.0,98815.0,0.050586]
[1732255082170,0.02062524,98816.0,98815.0,0.050586]
[1732255082363,0.050542,98822.0,98815.0,0.050586]
[1732255082562,0.3702,98824.0,98815.0,0.050586]
[1732255082563,0.3608,98824.0,98815.0,0.050586]
[1732255082768,0.3608,98824.0,98823.0,0.050542]
[1732255083167,0.3608,98824.0,98823.0,0.050582]
[1732255084366,0.411341,98824.0,98823.0,0.050582]
[1732255085173,0.43242944,98824.0,98823.0,0.050582]
[1732255088777,0.43242944,98824.0,98823.0,4e-05]
[1732255115700,0.73598944,98824.0,98823.0,4e-05]
[1732255116201,2.23598944,98824.0,98823.0,4e-05]
[1732255116599,0.050553,98802.0,98801.0,0.0304]
[1732255116797,0.411353,98802.0,98801.0,0.0304]
[1732255116997,0.411393,98802.0,98801.0,0.0304]
[1732255117925,0.36084,98802.0,98797.0,0.0315]
[1732255118214,0.050555,98798.0,98797.0,0.0315]
[1732255118406,0.050595,98798.0,98797.0,0.0315]
[1732255123113,0.050556,98795.0,98794.0,0.00052]
[1732255123320,0.050558,98791.0,98790.0,0.00151838]
[1732255123916,0.050598,98791.0,98790.0,0.00151838]
[1732255127624,0.050598,98791.0,98790.0,0.05207738]
[1732255127625,4e-05,98791.0,98790.0,0.05207738]
[1732255128319,4e-05,98791.0,98790.0,0.35575738]
[1732255129133,4e-05,98791.0,98790.0,0.05207738]
[1732255130123,4e-05,98791.0,98790.0,0.46562013]
[1732255136931,4e-05,98791.0,98790.0,0.14099738]
[1732255137836,0.050598,98791.0,98790.0,0.14099738]
[1732255138033,0.050598,98791.0,98790.0,0.05207738]
[1732255151646,0.050598,98791.0,98790.0,0.00151838]
[1732255159253,0.411398,98791.0,98790.0,0.00151838]
[1732255159950,0.050598,98791.0,98790.0,0.36231838]
[1732255160146,4e-05,98791.0,98790.0,0.41287738]
[1732255164349,4e-05,98791.0,98790.0,0.411359]
[1732255167054,0.050598,98791.0,98790.0,0.411359]
[1732255167257,4e-05,98791.0,98790.0,0.411359]
[1732255167849,0.050598,98791.0,98790.0,0.411359]
[1732255171858,4e-05,98791.0,98790.0,0.411359]
[1732255175749,0.050598,98791.0,98790.0,0.411359]
[1732255178660,0.050598,98791.0,98790.0,0.050559]
[1732255180560,0.050561,98787.0,98786.0,0.050561]
[1732255180864,0.050601,98787.0,98786.0,0.050561]
[1732255183058,0.050564,98782.0,98781.0,0.050563]
[1732255183567,0.050604,98782.0,98781.0,0.050563]
[1732255185271,0.050566,98777.0,98776.0,0.050565]
[1732255185661,0.050606,98777.0,98776.0,0.050565]
[1732255186455,0.411406,98777.0,98776.0,0.050565]
[1732255187370,0.050568,98772.0,98771.0,0.050568]
[1732255187668,4e-05,98772.0,98770.0,0.0015184]
[1732255187864,0.050568,98771.0,98770.0,0.0015184]
[1732255188062,0.050608,98771.0,98770.0,0.0015184]
[1732255189368,0.082508,98771.0,98770.0,0.0015184]
[1732255189670,0.145608,98771.0,98770.0,0.0015184]
[1732255191167,0.050571,98767.0,98764.0,0.050572]
[1732255191373,0.09504,98771.0,98752.0,0.02065558]
[1732255191670,0.36084,98765.0,98764.0,0.050572]
[1732255191860,0.3608,98765.0,98764.0,0.050572]
[1732255192066,0.095,98771.0,98757.0,0.3608]
[1732255192266,0.095,98771.0,98770.0,0.038769]
[1732255192466,0.145568,98771.0,98770.0,0.038769]
[1732255197161,0.095,98771.0,98752.0,0.139058]
[1732255197370,0.050572,98766.0,98765.0,0.050571]
[1732255199077,0.050575,98762.0,98761.0,0.050573]
[1732255200973,0.3608,98767.0,98762.0,0.050573]
[1732255201174,0.3608,98767.0,98752.0,0.3608]
[1732255201363,0.3608,98767.0,98766.0,4e-05]
[1732255201976,0.3608,98767.0,98766.0,0.050611]
[1732255204663,0.411371,98767.0,98766.0,0.050611]
[1732255204868,0.411371,98767.0,98766.0,4e-05]
[1732255206474,0.715131,98767.0,98766.0,4e-05]
[1732255207476,0.803651,98767.0,98766.0,4e-05]
[1732255210774,0.803651,98767.0,98754.0,0.0047]
[1732255210775,0.66456,98767.0,98750.0,0.08374624]
[1732255211082,0.3608,98767.0,98766.0,0.050571]
[1732255211874,0.00064,98776.0,98766.0,0.050571]
[1732255212076,0.0101,98780.0,98779.0,0.050564]
[1732255212277,0.3608,98787.0,98786.0,0.050561]
[1732255212580,0.38175574,98787.0,98786.0,0.050601]
[1732255213168,0.3608,98787.0,98786.0,0.050601]
[1732255213676,0.36218866,98787.0,98786.0,0.050601]
[1732255218085,0.36218866,98787.0,98786.0,4e-05]
[1732255218284,0.71642866,98787.0,98786.0,4e-05]
[1732255219375,0.7175299,98787.0,98786.0,4e-05]
[1732255220992,0.4515699,98787.0,98786.0,4e-05]
[1732255223191,0.3632899,98787.0,98786.0,4e-05]
[1732255223383,0.4138499,98787.0,98786.0,4e-05]
[1732255227807,0.41523856,98787.0,98786.0,4e-05]
[1732255236312,0.50351856,98787.0,98786.0,4e-05]
[1732255243015,0.50428931,98787.0,98786.0,4e-05]
[1732255251121,0.36544931,98787.0,98786.0,4e-05]
[1732255251420,0.36544931,98787.0,98786.0,0.050601]
[1732255254119,0.0101,98800.0,98795.0,0.050556]
[1732255254322,0.36231874,98807.0,98804.0,0.050552]
[1732255254323,0.0024,98805.0,98804.0,0.050552]
[1732255254515,0.36231874,98807.0,98796.0,0.050556]
[1732255254516,0.38288192,98807.0,98806.0,0.050551]
[1732255254719,0.38136318,98807.0,98806.0,0.050551]
[1732255254930,0.38275156,98807.0,98806.0,0.050591]
[1732255256832,0.43330156,98807.0,98806.0,0.050591]
[1732255257828,0.38275156,98807.0,98806.0,0.050591]
[1732255259232,0.38275156,98807.0,98806.0,0.07108915]
[1732255260528,0.38275156,98807.0,98806.0,4e-05]
[1732255260723,0.38275156,98807.0,98790.0,0.0024]
[1732255260724,0.73694156,98807.0,98795.0,0.050556]
[1732255260927,0.050557,98794.0,98786.0,4e-05]
[1732255261131,0.3608,98788.0,98787.0,0.05056]
[1732255261619,0.3608,98788.0,98786.0,4e-05]
[1732255261824,0.05056,98787.0,98786.0,4e-05]
[1732255262126,0.14006839,98787.0,98786.0,4e-05]
[1732255264825,0.14035196,98787.0,98786.0,4e-05]
[1732255266033,0.00175196,98787.0,98786.0,4e-05]
[1732255266830,0.00175196,98787.0,98786.0,0.03194]
[1732255268338,0.00175196,98787.0,98786.0,0.082501]
[1732255269225,0.00175196,98787.0,98786.0,0.050601]
[1732255272426,0.36255196,98787.0,98786.0,0.050601]
[1732255274542,0.36255196,98787.0,98786.0,0.050561]
[1732255279543,0.36255196,98787.0,98786.0,0.354241]
[1732255279544,0.00175196,98787.0,98786.0,0.354241]
[1732255279735,8.001e-05,98796.0,98795.0,0.050556]
[1732255280238,8.001e-05,98796.0,98795.0,0.050596]
[1732255293144,8.001e-05,98796.0,98795.0,0.354236]
[1732255294255,8.001e-05,98796.0,98795.0,0.37489625]
[1732255297252,8.001e-05,98796.0,98795.0,0.07125625]
[1732255299456,8.001e-05,98796.0,98795.0,0.43205625]
[1732255299657,8.001e-05,98796.0,98795.0,0.07125625]
[1732255300359,8.001e-05,98796.0,98795.0,0.43205625]
[1732255302150,8.001e-05,98796.0,98795.0,0.51969625]
[1732255303260,8.001e-05,98796.0,98795.0,0.53990837]
[1732255304564,8.001e-05,98796.0,98795.0,0.411396]
[1732255316661,1e-08,98796.0,98795.0,0.715036]
[1732255322060,0.0024,98805.0,98804.0,0.050552]
[1732255322367,0.08379952,98810.0,98804.0,0.050552]
[1732255322670,0.08619952,98814.0,98809.0,8.001e-05]
[1732255322874,0.0317,98815.0,98809.0,8.001e-05]
[1732255323169,0.3608,98810.0,98796.0,0.08764]
[1732255323360,0.411349,98810.0,98808.0,0.050549]
[1732255323560,0.3608,98810.0,98795.0,0.3608]
[1732255323760,0.050552,98804.0,98803.0,0.050552]
[1732255326463,0.0711726,98804.0,98803.0,0.050552]
[1732255328170,0.0206206,98804.0,98803.0,0.050552]
[1732255328372,0.411989,98810.0,98808.0,0.050549]
[1732255328567,0.411349,98810.0,98808.0,0.048149]
[1732255328762,0.411349,98810.0,98809.0,0.050549]
[1732255328962,0.3608,98810.0,98809.0,0.050549]
[1732255329369,0.38209091,98810.0,98809.0,0.050549]
[1732255331267,0.38209091,98810.0,98795.0,0.3632]
[1732255331467,0.13435052,98805.0,98795.0,0.3608]
[1732255331678,4e-05,98796.0,98795.0,0.411356]
[1732255332775,0.050596,98796.0,98795.0,0.411356]
[1732255333168,0.050596,98796.0,98795.0,0.050556]
[1732255333871,0.080996,98796.0,98795.0,0.050556]
[1732255335491,0.050557,98793.0,98792.0,0.050558]
[1732255335870,0.050597,98793.0,98792.0,0.050558]
[1732255340177,0.050559,98790.0,98789.0,0.00151818]
[1732255340483,0.050599,98790.0,98789.0,0.00151818]
[1732255343977,0.050599,98790.0,98789.0,0.05207718]
[1732255344678,0.050599,98790.0,98789.0,0.00151818]
[1732255354093,0.050599,98790.0,98789.0,0.05207718]
[1732255363493,0.050599,98790.0,98789.0,0.00151818]
[1732255368207,0.050563,98782.0,98781.0,0.0024]
[1732255368395,0.050567,98774.0,98773.0,0.0024]
[1732255368703,0.05057,98769.0,98768.0,0.0024]
[1732255368898,0.050571,98766.0,98762.0,0.0024]
[1732255369092,0.050571,98766.0,98760.0,0.050574]
[1732255369299,0.050571,98766.0,98759.0,0.10897361]
[1732255369300,0.050571,98766.0,98759.0,0.0015189]
[1732255369899,0.050571,98766.0,98759.0,0.0520939]
[1732255370207,0.050571,98766.0,98760.0,0.050574]
[1732255370804,0.050571,98766.0,98759.0,0.0015189]
[1732255371109,4e-05,98769.0,98759.0,0.0015189]
[1732255371293,0.050574,98760.0,98759.0,0.0520939]
[1732255371611,0.050614,98760.0,98759.0,0.0520939]
[1732255375410,0.050614,98760.0,98759.0,0.0015189]
[1732255377104,0.411414,98760.0,98759.0,0.0015189]
[1732255379904,0.41095093,98760.0,98759.0,0.0015189]
[1732255380298,0.49823093,98760.0,98759.0,0.0015189]
[1732255380702,0.050578,98752.0,98751.0,0.0024]
[1732255380912,0.050582,98744.0,98743.0,0.0024]
[1732255381102,0.0314,98751.0,98738.0,0.3608]
[1732255381405,0.050625,98739.0,98738.0,0.3608]
[1732255381606,0.050625,98739.0,98738.0,0.411385]
[1732255394617,4e-05,98739.0,98738.0,0.411385]
[1732255396805,4e-05,98739.0,98738.0,0.42807314]
[1732255397011,4e-05,98739.0,98738.0,0.411385]
[1732255397519,4e-05,98739.0,98738.0,0.42807314]
[1732255400611,4e-05,98739.0,98738.0,0.411385]
[1732255403622,0.0047,98748.0,98738.0,0.715225]
[1732255403828,0.0047,98753.0,98752.0,0.050578]
[1732255404129,0.050575,98759.0,98755.0,0.050577]
[1732255404424,0.0047,98762.0,98755.0,0.050577]
[1732255404425,0.050575,98758.0,98755.0,0.050576]
[1732255404629,0.050535,98758.0,98755.0,0.050576]
[1732255405132,0.050535,98758.0,98754.0,0.050577]
[1732255405425,0.050535,98758.0,98756.0,0.050576]
[1732255406419,0.02086671,98762.0,98756.0,0.3608]
[1732255406618,0.00151904,98764.0,98763.0,0.050573]
[1732255406922,0.08379952,98790.0,98763.0,0.06726114]
[1732255406923,0.0047,98773.0,98763.0,0.06726114]
[1732255407130,0.0047,98773.0,98771.0,0.050568]
[1732255407330,0.0047,98781.0,98780.0,0.050564]
[1732255407525,0.07141876,98782.0,98780.0,0.050564]
[1732255412347,0.07141876,98782.0,98781.0,0.050563]
[1732255420450,0.02085576,98782.0,98781.0,0.050563]
[1732255420640,0.3608,98785.0,98781.0,0.050563]
[1732255420840,0.3608,98785.0,98784.0,0.050562]
[1732255421046,0.3608,98785.0,98784.0,0.05068201]
[1732255421346,0.050559,98789.0,98788.0,0.05056]
[1732255421746,0.050559,98789.0,98788.0,0.05068001]
[1732255421946,0.07190901,98789.0,98788.0,0.05068001]
[1732255427649,0.02135001,98789.0,98788.0,0.05068001]
[1732255427951,0.0047,98796.0,98795.0,0.050556]
[1732255428155,0.055253,98801.0,98800.0,0.050554]
[1732255428452,0.050553,98801.0,98800.0,0.050554]
[1732255428755,0.050553,98801.0,98800.0,0.05067401]
[1732255429250,0.050553,98801.0,98800.0,0.00012001]
[1732255429554,0.411353,98801.0,98800.0,0.00012001]
[1732255432854,0.05055,98807.0,98806.0,0.05055]
[1732255433058,0.050551,98806.0,98805.0,0.050551]
[1732255440063,0.07102001,98806.0,98805.0,0.050551]
[1732255440252,0.050551,98806.0,98805.0,0.050551]
[1732255440760,0.050549,98810.0,98809.0,0.050549]
[1732255441760,0.00151836,98817.0,98803.0,0.08688]
[1732255441761,0.00151836,98817.0,98813.0,0.050547]
[1732255441966,0.00151836,98817.0,98816.0,0.050545]
[1732255442257,0.00151836,98817.0,98816.0,0.05066501]
[1732255442653,0.0047,98824.0,98816.0,0.05066501]
[1732255442654,0.0047,98824.0,98823.0,0.050542]
[1732255442861,0.07166537,98826.0,98825.0,0.050541]
[1732255443265,0.07166537,98826.0,98825.0,0.05066101]
[1732255462371,0.07166537,98826.0,98825.0,0.0671635]
[1732255463672,0.07166537,98826.0,98825.0,0.05066101]
[1732255466671,0.07166537,98826.0,98825.0,0.35422101]
[1732255466871,0.3608,98829.0,98825.0,0.35422101]
[1732255466872,0.05054,98830.0,98829.0,0.050537]
[1732255467573,0.0718497,98830.0,98829.0,0.050537]
[1732255467775,0.0718497,98830.0,98829.0,0.05065701]
[1732255469877,0.05054,98830.0,98829.0,0.05065701]
[1732255475477,0.05054,98830.0,98829.0,0.00012001]
[1732255499816,0.05054,98830.0,98829.0,0.05065901]
[1732255504704,0.05054,98830.0,98829.0,0.00012001]
[1732255512315,0.05054,98830.0,98829.0,0.05065901]
[1732255513713,0.05054,98830.0,98829.0,0.06775324]
[1732255517821,0.05054,98830.0,98829.0,0.01721424]
[1732255518716,0.41134,98830.0,98829.0,0.01721424]
[1732255520612,0.41134,98830.0,98817.0,0.0024]
[1732255520613,0.050541,98825.0,98817.0,0.0024]
[1732255520818,0.411344,98818.0,98807.0,0.10904284]
[1732255521007,0.411349,98809.0,98808.0,0.01808183]
[1732255524319,0.43217264,98809.0,98808.0,0.01808183]
[1732255528523,0.05055,98807.0,98806.0,0.01808183]
[1732255528915,0.050551,98806.0,98805.0,0.00151803]
[1732255529118,0.050551,98806.0,98805.0,0.02037393]
[1732255529324,0.112791,98806.0,98805.0,0.00151803]
[1732255532020,0.112791,98806.0,98796.0,0.0188559]
[1732255532222,0.050556,98796.0,98795.0,0.0188559]
[1732255532622,0.050558,98791.0,98790.0,0.0314]
[1732255532818,0.050558,98791.0,98790.0,0.081959]
[1732255533228,0.050558,98793.0,98792.0,0.050557]
[1732255533729,0.050558,98793.0,98792.0,0.050597]
[1732255536431,0.02064097,98797.0,98792.0,4e-05]
[1732255536630,0.050554,98800.0,98794.0,0.050556]
[1732255536825,0.050555,98797.0,98796.0,4e-05]
[1732255537138,0.050557,98793.0,98790.0,0.081959]
[1732255537333,0.050558,98792.0,98790.0,0.081959]
[1732255539031,0.050558,98791.0,98790.0,0.081959]
[1732255540923,0.0024,98798.0,98791.0,0.050558]
[1732255541930,0.052955,98798.0,98791.0,0.050558]
[1732255542239,0.050555,98797.0,98792.0,0.050558]
[1732255542632,0.050555,98797.0,98793.0,0.050557]
[1732255543139,0.050555,98797.0,98794.0,0.050556]
[1732255544439,0.050555,98797.0,98795.0,0.050556]
[1732255544944,0.050555,98797.0,98796.0,0.050556]
[1732255548142,0.0318,98798.0,98797.0,0.050555]
[1732255548545,0.0318,98798.0,98797.0,0.050595]
[1732255549237,0.0318,98798.0,98797.0,0.0694509]
[1732255549944,0.38165908,98801.0,98797.0,0.0188959]
[1732255550141,0.38165908,98801.0,98800.0,0.050554]
[1732255550443,0.38165908,98801.0,98800.0,0.0694499]
[1732255555948,0.43221208,98801.0,98800.0,0.0694499]
[1732255558849,0.43221208,98801.0,98800.0,0.050594]
[1732255559346,0.38165908,98801.0,98800.0,0.050594]
[1732255561445,0.02085908,98801.0,98800.0,0.0694499]
[1732255561751,0.412033,98802.0,98801.0,0.050553]
[1732255561948,0.050553,98802.0,98801.0,0.050553]
[1732255562151,0.050553,98802.0,98801.0,0.050593]
[1732255562152,0.3608,98802.0,98801.0,0.050593]
[1732255562347,0.38224174,98802.0,98801.0,0.050593]
[1732255562952,0.0024,98808.0,98801.0,0.050593]
[1732255563145,0.0024,98808.0,98807.0,0.05055]
[1732255563447,0.36144,98814.0,98813.0,0.050547]
[1732255563644,0.3608,98814.0,98813.0,0.0694029]
[1732255564046,0.02061334,98817.0,98816.0,0.050545]
[1732255564245,0.00151836,98821.0,98816.0,0.0694009]
[1732255564454,0.00151836,98821.0,98820.0,0.050543]
[1732255564755,0.00151836,98821.0,98820.0,0.050583]
[1732255565853,0.02255744,98821.0,98820.0,0.050583]
[1732255566049,0.00151836,98821.0,98820.0,0.050583]
[1732255568150,0.02273989,98821.0,98820.0,0.050583]
[1732255568453,0.00151836,98821.0,98820.0,0.050583]
[1732255592272,0.05055,98808.0,98807.0,0.05111]
[1732255592464,0.050551,98806.0,98805.0,0.050551]
[1732255592665,0.050551,98805.0,98804.0,0.050551]
[1732255592965,0.05059101,98805.0,98804.0,0.050551]
[1732255593974,4.001e-05,98805.0,98804.0,0.050551]
[1732255595472,0.05059101,98805.0,98804.0,0.050551]
[1732255596469,0.02093783,98805.0,98799.0,0.3614]
[1732255596668,0.050554,98800.0,98799.0,0.3608]
[1732255596971,0.05059401,98800.0,98799.0,0.3608]
[1732255597665,0.05059401,98800.0,98798.0,0.050555]
[1732255597977,0.050554,98800.0,98799.0,0.050554]
[1732255599464,0.050552,98803.0,98802.0,0.050553]
[1732255599970,0.050552,98803.0,98802.0,0.050593]
[1732255608477,0.05059101,98805.0,98804.0,0.050552]
[1732255608682,4.001e-05,98805.0,98804.0,0.050552]
[1732255608983,4.001e-05,98805.0,98804.0,0.050592]
[1732255611885,4.001e-05,98805.0,98804.0,0.07108512]
[1732255612092,0.05059101,98805.0,98804.0,0.07108512]
[1732255612977,0.05059101,98805.0,98804.0,4e-05]
[1732255614487,0.05059101,98805.0,98804.0,0.050592]
[1732255615388,4.001e-05,98805.0,98804.0,0.050592]
[1732255615682,4.001e-05,98805.0,98804.0,0.136272]
[1732255616895,4.001e-05,98805.0,98804.0,0.15709869]
[1732255617378,1e-08,98805.0,98804.0,0.46073869]
[1732255617687,1e-08,98805.0,98804.0,0.82153869]
[1732255618585,1e-08,98805.0,98804.0,0.83835191]
[1732255618786,1e-08,98805.0,98804.0,1.13835191]
[1732255619687,1e-08,98805.0,98804.0,0.82153869]
[1732255619891,1e-08,98805.0,98804.0,0.83835191]
[1732255620080,1e-08,98805.0,98804.0,0.82153869]
[1732255620384,1e-08,98805.0,98804.0,0.83835191]
[1732255620595,1e-08,98805.0,98804.0,1.13835191]
[1732255621097,1e-08,98805.0,98804.0,1.15856124]
[1732255622487,1e-08,98805.0,98804.0,1.14174802]
[1732255624794,1e-08,98805.0,98804.0,0.84174802]
[1732255626796,0.0125,98813.0,98812.0,0.050548]
[1732255626995,0.0101,98819.0,98818.0,0.050544]
[1732255627181,0.00151836,98821.0,98820.0,0.050543]
[1732255627387,0.00151836,98821.0,98820.0,0.411343]
[1732255627588,0.00151836,98821.0,98820.0,0.411383]
[1732255628791,0.0101,98826.0,98825.0,0.050541]
[1732255628991,0.050539,98828.0,98827.0,0.05054]
[1732255629388,0.050539,98828.0,98827.0,0.05058]
[1732255631201,0.0101,98832.0,98831.0,0.050538]
[1732255631400,0.050537,98833.0,98827.0,4e-05]
[1732255631401,0.050537,98833.0,98832.0,0.050537]
[1732255632191,0.050537,98833.0,98832.0,0.411337]
[1732255632396,0.050537,98833.0,98832.0,0.411377]
[1732255637003,0.1019163,98837.0,98836.0,0.050535]
[1732255637405,0.1019163,98837.0,98836.0,0.050575]
[1732255638301,0.0306,98837.0,98836.0,0.050575]
[1732255639203,0.0426,98843.0,98836.0,0.050575]
[1732255639204,0.0426,98843.0,98842.0,0.050532]
[1732255639404,0.5968,98875.0,98842.0,0.050532]
[1732255639405,0.0101,98849.0,98842.0,0.44624]
[1732255639608,0.0101,98849.0,98847.0,0.05053]
[1732255639802,0.0405,98852.0,98847.0,0.05053]
[1732255639803,0.0311,98852.0,98847.0,0.05053]
[1732255639998,0.081627,98852.0,98851.0,0.050528]
[1732255640309,0.081627,98852.0,98851.0,0.050568]
[1732255641901,0.10284025,98852.0,98851.0,0.050568]
[1732255642907,0.10284025,98852.0,98851.0,4e-05]
[1732255643208,0.050534,98840.0,98839.0,0.050533]
[1732255643610,0.050574,98840.0,98839.0,0.050533]
[1732255645206,4e-05,98840.0,98839.0,0.050533]
[1732255647712,4e-05,98840.0,98839.0,0.07125794]
[1732255653926,4e-05,98840.0,98839.0,0.08814579]
[1732255659328,0.050531,98844.0,98839.0,0.03761279]
[1732255659530,0.050531,98844.0,98843.0,0.050532]
[1732255659824,0.050531,98844.0,98843.0,0.06745985]
[1732255664025,0.050531,98844.0,98843.0,0.050572]
[1732255667826,0.050531,98844.0,98843.0,0.135812]
[1732255670729,0.050531,98844.0,98843.0,4e-05]
[1732255670934,0.050531,98844.0,98843.0,0.08528]
[1732255674036,0.050531,98844.0,98843.0,4e-05]
[1732255676836,0.0101,98846.0,98843.0,4e-05]
[1732255676837,0.0101,98846.0,98845.0,0.050531]
[1732255677138,0.050528,98850.0,98849.0,0.050529]
[1732255677529,0.050528,98850.0,98849.0,0.050569]
[1732255679526,0.050528,98850.0,98849.0,4e-05]
[1732255682537,0.050528,98850.0,98849.0,0.050569]
[1732255683428,0.02052577,98853.0,98851.0,0.050528]
[1732255683838,0.02052577,98853.0,98852.0,0.050527]
[1732255684144,0.060625,98856.0,98855.0,0.050526]
[1732255684445,0.050525,98856.0,98855.0,0.050526]
[1732255684932,0.050525,98856.0,98855.0,0.050566]
[1732255687740,0.050525,98856.0,98855.0,4e-05]
[1732255695542,0.38159316,98857.0,98855.0,4e-05]
[1732255695742,0.38159316,98857.0,98856.0,0.050525]
[1732255696042,0.43211716,98857.0,98856.0,0.050565]
[1732255696750,0.43211716,98857.0,98856.0,4e-05]
[1732255696948,0.050528,98850.0,98849.0,4e-05]
[1732255697341,0.050568,98850.0,98849.0,4e-05]
[1732255699849,0.143968,98850.0,98849.0,4e-05]
[1732255703957,0.081268,98850.0,98849.0,4e-05]
[1732255707357,0.050568,98850.0,98849.0,4e-05]
[1732255707754,0.050568,98850.0,98849.0,0.050569]
[1732255710953,4e-05,98850.0,98849.0,0.050569]
[1732255711152,4e-05,98850.0,98849.0,0.411369]
[1732255713056,0.0101,98856.0,98855.0,0.050526]
[1732255713261,0.07131816,98857.0,98856.0,0.050525]
[1732255715457,0.07131816,98857.0,98855.0,4e-05]
[1732255715458,0.050525,98856.0,98855.0,4e-05]
[1732255715852,0.050565,98856.0,98855.0,4e-05]
[1732255719464,0.354045,98856.0,98849.0,4e-05]
[1732255719760,0.050568,98850.0,98849.0,4e-05]
[1732255720164,0.354048,98850.0,98838.0,0.0101]
[1732255720373,0.050536,98834.0,98833.0,0.0101]
[1732255720559,0.050536,98834.0,98822.0,0.0101]
[1732255720854,0.050536,98834.0,98806.0,0.0047]
[1732255720855,0.050545,98817.0,98816.0,0.0101]
[1732255721176,0.050545,98817.0,98805.0,0.06901824]
[1732255721177,0.050551,98806.0,98805.0,0.01161824]
[1732255721357,0.050551,98806.0,98805.0,0.00151824]
[1732255721358,0.411351,98806.0,98805.0,0.00151824]
[1732255721660,0.411431,98806.0,98805.0,0.00151824]
[1732255724555,0.050556,98795.0,98794.0,0.0101]
[1732255724758,0.411431,98806.0,98786.0,0.082061]
[1732255724759,0.0101,98801.0,98786.0,0.082061]
[1732255724953,8e-05,98795.0,98786.0,0.082061]
[1732255725151,0.050559,98789.0,98786.0,0.082061]
[1732255725558,8e-05,98787.0,98779.0,0.0313]
[1732255725767,8e-05,98787.0,98770.0,0.3608]
[1732255725768,0.050565,98778.0,98776.0,0.0101]
[1732255725966,0.050566,98776.0,98774.0,0.02112403]
[1732255726163,0.050566,98776.0,98773.0,0.050567]
[1732255726562,0.050646,98776.0,98773.0,0.050567]
[1732255727069,8e-05,98776.0,98773.0,0.050567]
[1732255727766,8e-05,98776.0,98773.0,0.07205565]
[1732255727965,8e-05,98776.0,98773.0,0.15697565]
[1732255728566,8e-05,98776.0,98774.0,0.050566]